Cogmind - Beta 13 *** ADVENTURER MODE // 2024.06.24 @ 11:55:57 Player: AnotherZach Result: Smashed by cave-in Performance ------------- Evolutions (0) 0 Regions Visited (2) 400 Robots Destroyed (32) 160 Value Destroyed (562) 562 Prototype IDs (12) 240 Alien Tech Used (0) 0 Bonus (2) 2 TOTAL SCORE: 1364 Bonus ------- High Alert Combat Kills 2 Cogmind --------- Core Integrity 0/250 Matter 197/300 Energy 100/100 System Corruption 5% Temperature Cool (0) Movement Rolling (140) Ox4 Location -10/Subcaves Parts ------- > --- POWER (1) -------- (None) > --- PROPULSION (2) --- Wheel > --- UTILITY (2) ------ High-capacity Storage Unit Structural Scanner > --- WEAPON (2) ------- Light Cannon Ripper > --- INVENTORY (20) --- Improved Ion Engine Arachnoskeleton Wheel Compact Wheel Medium Storage Unit High-capacity Storage Unit Signal Interpreter Seismic Detector Targeting Computer Makeshift Light Armor Plating EM Shotgun EM Shotgun EM Shotgun Battle Rifle Battle Rifle Battle Cannon Grenade Launcher Peak State ------------ > --- POWER ------------ Ion Engine > --- PROPULSION ------- Wheel Wheel > --- UTILITY ---------- High-capacity Storage Unit Targeting Computer > --- WEAPON ----------- Light Cannon Ripper > --- INVENTORY -------- Improved Ion Engine Arachnoskeleton Wheel Compact Wheel Medium Storage Unit High-capacity Storage Unit Structural Scanner Signal Interpreter Seismic Detector Targeting Computer Makeshift Light Armor Plating EM Shotgun EM Shotgun EM Shotgun Battle Rifle Battle Rifle Battle Cannon Grenade Launcher [Rating: 14] Favorites ----------- Power Ion Engine Engine Ion Engine Propulsion Wheel Treads Light Treads Wheel Wheel Utility Targeting Computer Device Structural Scanner Storage High-capacity Storage Unit Processor Targeting Computer Weapon EM Shotgun Energy Gun EM Shotgun Ballistic Gun Assault Rifle Ballistic Cannon Light Cannon Launcher Grenade Launcher Slashing Weapon Ripper Build | -11 -10 -10 ------- Run | Yrd Mat Sub Slots Evolved . | . . . Power . | . . . Propulsion . | . . . Utility . | . . . Weapon . | . . . Parts Attached 26 | 7 12 7 Power 3 | 1 2 . Engine 3 | 1 2 . Core . | . . . Reactor . | . . . Propulsion 7 | 2 3 2 Treads 1 | . 1 . Leg . | . . . Wheel 6 | 2 2 2 Hover . | . . . Flight . | . . . Utility 6 | 2 3 1 Device 2 | 1 . 1 Storage 3 | 1 2 . Processor 1 | . 1 . Hackware . | . . . Protection . | . . . Artifact . | . . . Weapon 10 | 2 4 4 Energy Gun 1 | . 1 . Energy Cannon . | . . . Ballistic Gun 3 | 2 1 . Ballistic Cannon 2 | . . 2 Launcher 3 | . 2 1 Special Weapon . | . . . Impact Weapon . | . . . Slashing Weapon 1 | . . 1 Piercing Weapon . | . . . Special Melee Weapon . | . . . Unidentified Prototypes . | . . . Parts Lost 4 | . . 4 Power 1 | . . 1 Propulsion 3 | . . 3 Utility . | . . . Weapon . | . . . Highest Loss Streak 2 | . . 2 To Critical Strikes . | . . . Average Slot Usage (%) 99 | . 100 99 Engine 14 | . 14 14 Wheel 27 | . 28 27 Storage 14 | . 14 14 Processor 13 | . 13 13 Energy Gun 9 | . 11 7 Ballistic Gun 5 | . 14 . Ballistic Cannon 8 | . . 14 Launcher 3 | . 2 4 Naked Turns . | . . . Heaviest Build 53 | 13 53 52 Greatest Support 26 | 20 26 26 Greatest Overweight (x) 5 | . 2 5 Average Overweight (x) 1 | . . 1 Largest Inventory Capacity 20 | 8 20 20 Average Capacity 18 | 7 17 20 Most Carried 20 | 8 20 20 Average Carried 17 | 4 14 19 Final Capacity 20 | 8 20 20 Final Carried 20 | 8 20 19 Class Distribution -------------------- 100% | Mutant Dominant Class ---------------- Mutant | -10/Materials Mutant | -10/Subcaves Resources | -11 -10 -10 ----------- Run | Yrd Mat Sub Matter Collected 859 | 288 283 288 Remotely . | . . . Salvage Created 886 | 136 579 171 Parts 77 | 12 52 13 Haulers Intercepted 2 | . 2 . Recyclers Shooed . | . . . Parts Field Recycled . | . . . Retrieved Matter . | . . . Parts Self-Destructed 5 | . . 5 Prevented . | . . . Kills | -11 -10 -10 ------- Run | Yrd Mat Sub Combat Hostiles Destroyed 19 | . 13 6 Guns 10 | . 10 . Cannons 5 | . . 5 AOE 4 | . 3 1 Classes Destroyed 9 | 2 6 1 Worker 1 | . 1 . Builder 2 | . 2 . Tunneler 3 | 3 . . Hauler 2 | . 2 . Recycler 2 | 1 1 . Watcher 3 | . 3 . Swarmer 9 | . 9 . Grunt 4 | . 4 . Subdweller 6 | . . 6 Best Kill Streak 7 | 3 7 2 Combat Bots Only 5 | . 5 2 Max Kills in Single Turn 2 | 1 2 1 Gunslinging 1 | . 1 . Exploded 1 | . 1 1 Melee . | . . . Uniques/NPCs Destroyed . | . . . Combat | -11 -10 -10 -------- Run | Yrd Mat Sub Hostile Shots Fired 57 | . 33 24 Missed 15 | . 8 7 Damage Taken 807 | . 194 613 Core 296 | . 32 264 Absorbed by Shields . | . . . Ignored by Resistances 154 | . 58 96 Regen/Repaired (Parts) 11 | . 11 . Core Remaining (%) 100 | 100 . . Volleys Fired 83 | 5 33 45 Largest 2 | 2 2 2 Hottest 80 | 40 75 80 Shots Fired 141 | 10 66 65 Gun 76 | 10 59 7 Cannon 48 | . . 48 Launcher 17 | . 7 10 Special . | . . . Kinetic 98 | 10 40 48 Thermal . | . . . Explosive 17 | . 7 10 Electromagnetic 26 | . 19 7 Robot Hit Streak 24 | 3 10 24 Robot Miss Streak 2 | 2 2 1 Penetration Max . | . . . Secondary Targets 4 | . 4 . Max Gunslinging Chain 1 | . 1 . Shots Hit Robots 76 | 6 41 29 Core Hits 45 | 4 29 12 Critical Kills 1 | 1 . . Critical Parts Destroyed . | . . . Critical Strikes 1 | 1 . . Destroy 1 | 1 . . Melee Attacks 9 | . . 9 Impact . | . . . Slashing 9 | . . 9 Piercing . | . . . Sneak Attacks . | . . . Combat Hostiles . | . . . Follow-up Attacks . | . . . Damage Inflicted 1501 | 78 911 512 Guns 621 | 78 543 . Cannons 449 | . . 449 Explosions 431 | . 368 63 Melee . | . . . Ramming . | . . . Kinetic 827 | 78 300 449 Thermal 50 | . 50 . Explosive 381 | . 318 63 Electromagnetic 243 | . 243 . Impact . | . . . Slashing . | . . . Piercing . | . . . Highest Corruption . | . . . Average Corruption . | . . . Corruption Purged . | . . . Corruption Blocked . | . . . Overload Shots . | . . . Overflow Damage 8 | . 8 . Projectiles . | . . . Explosions 8 | . 8 . Melee . | . . . Knockbacks 2 | . . 2 Impact . | . . . Kinetic 2 | . . 2 Secondary . | . . . Self-Inflicted Damage 77 | . 26 51 Shots 5 | . 2 3 Rammed . | . . . Targets Rammed . | . . . Kicked . | . . . Crushed . | . . . Highest Temperature 30 | . 30 . Average Temperature 11 | . 11 . Received Heat Transfer 84 | . 24 60 Siege Activations . | . . . Robots Corrupted . | . . . Combat Hostiles . | . . . Parts Fried 1 | . 1 . Impact Corruptions . | . . . Robots Melted . | . . . Combat Hostiles . | . . . Parts Melted . | . . . Heat Transferred 100 | . 100 . Parts Sabotaged . | . . . Parts Stolen . | . . . Parts Stripped . | . . . Power Chain Reactions 2 | . 2 . Alert | -11 -10 -10 ------- Run | Yrd Mat Sub Peak Influence 442 | 20 442 . Initial 11 | . 11 . Average 166 | 7 185 . Maximum Alert Level 2 | . 2 . Low Security (%) 58 | 100 53 . Level 1 33 | . 37 . Level 2 7 | . 8 . Level 3 . | . . . Level 4 . | . . . Level 5 . | . . . High Security . | . . . Max Security . | . . . Squads Dispatched 2 | . 2 . Investigation 2 | . 2 . Extermination . | . . . Reinforcement . | . . . Assault . | . . . Garrison . | . . . Intercept . | . . . Searches Triggered . | . . . Construction Impeded . | . . . Haulers Reinforced . | . . . Active Scanning Responses . | . . . Cargo Convoy Interrupts . | . . . Stealth | -11 -10 -10 --------- Run | Yrd Mat Sub Distress Signals 2 | . 2 . Communications Jammed . | . . . Distress Signals . | . . . Times Spotted 22 | . 16 6 Peak Tracking Total 4 | . 4 2 Tactical Retreats 1 | . 1 . Traps | -11 -10 -10 ------- Run | Yrd Mat Sub Traps Triggered 2 | . 2 . Indirectly . | . . . Trap Hack Attempts . | . . . Triggered . | . . . Disarmed . | . . . Reprogrammed . | . . . Reused . | . . . Traps Extracted . | . . . Installed . | . . . Triggered . | . . . Machines | -11 -10 -10 ---------- Run | Yrd Mat Sub Machines Disabled 1 | . . 1 Max in Single Turn 1 | . . 1 Machines Repaired . | . . . Machines Dismantled . | . . . Machines Sabotaged . | . . . Overloaded Fab Kills . | . . . Hacking | -11 -10 -10 --------- Run | Yrd Mat Sub Machines Accessed 10 | . 9 1 Terminals 7 | . 7 . Fabricators . | . . . Repair Stations 1 | . 1 . Recycling Units 1 | . 1 . Scanalyzers . | . . . Garrison Access . | . . . Total Hacks 45 | . 36 9 Successful 37 | . 28 9 Failed 7 | . 7 . Catastrophic . | . . . Database Lockouts 1 | . 1 . Manual 23 | . 23 . Terminals 31 | . 31 . Fabricators . | . . . Repair Stations 2 | . 2 . Recycling Units 3 | . 3 . Scanalyzers . | . . . Garrison Access . | . . . Terminal Hacks 24 | . 15 9 Record 8 | . . 8 Robot Analysis 3 | . 3 . Prototype ID Bank 1 | . 1 . Branch Access Points 1 | . 1 . Scanalyzer Index 1 | . 1 . Unreport Threat 1 | . 1 . Locate Traps 1 | . 1 . Dispatch Records 1 | . 1 . Recall Investigation 1 | . 1 . Hauler Manifests 1 | . 1 . Registered Components 1 | . 1 . Registered Prototypes 1 | . 1 . Zone Layout 2 | . 2 . Derelict Proto ID Bank 1 | . . 1 Fabricator Hacks . | . . . Repair Station Hacks 2 | . 2 . Scan Component 1 | . 1 . Repair 1 | . 1 . Recycling Unit Hacks 1 | . 1 . Report Inventory 1 | . 1 . Scanalyzer . | . . . Garrison Access Hacks . | . . . Unauthorized Hacks 10 | . 10 . Terminals 8 | . 8 . Track 3 | . 3 . Botnet 5 | . 5 . Fabricators . | . . . Repair Stations . | . . . Recycling Units 2 | . 2 . Reject 1 | . 1 . Recyclers 1 | . 1 . Scanalyzers . | . . . Garrison Access . | . . . Data Cores Recovered . | . . . Used . | . . . Hacking Detections 8 | . 8 . Full Trace Events . | . . . Feedback Events . | . . . Feedback Blocked . | . . . Robot Schematics Acquired . | . . . Robots Built . | . . . Authchips . | . . . Time . | . . . Total Robot Build Rating . | . . . Part Schematics Acquired . | . . . Parts Built . | . . . Authchips . | . . . Time . | . . . Total Part Build Rating . | . . . Parts Repaired 1 | . 1 . Time 26 | . 26 . Parts Recycled . | . . . Recycled Matter . | . . . Retrieved Matter . | . . . Retrieved Components . | . . . Parts Scanalyzed . | . . . Part Schematics Acquired . | . . . Parts Damaged . | . . . Bothacking | -11 -10 -10 ------------ Run | Yrd Mat Sub Used RIF Installer . | . . . Robots Hacked . | . . . Non-combat . | . . . Combat . | . . . Robot Hacks Applied . | . . . Relay Couplers Released . | . . . Fabnet Peak Effective % . | . . . Robots Rewired . | . . . Allies Hacked . | . . . Hacks Repelled . | . . . Allies | -11 -10 -10 -------- Run | Yrd Mat Sub Total Allies . | . . . Largest Group . | . . . Highest-Rated Group . | . . . Highest-Rated Ally . | . . . Total Orders . | . . . Ally Attacks . | . . . Total Damage . | . . . Kills . | . . . Allies Corrupted . | . . . Allies Melted . | . . . Intel | -11 -10 -10 ------- Run | Yrd Mat Sub Robot Analysis Total 3 | . 3 . Derelict Logs Recovered 1 | . . 1 Drone Launches . | . . . Drone Recoveries . | . . . Exploration | -11 -10 -10 ------------- Run | Yrd Mat Sub Turns Passed 2079 | 95 783 1201 Spaces Moved 1636 | 77 576 983 Core 11 | 11 . . Treads . | . . . Legs . | . . . Wheels 1625 | 66 576 983 Hover . | . . . Flight . | . . . Fastest Speed 50 | 50 80 105 Average Speed 102 | 75 99 106 Slowest Speed 155 | 80 120 155 Overloaded Moves . | . . . Propulsion Burnouts . | . . . Robots Hopped . | . . . Cave-ins Triggered 1 | . . 1 Exploration Rate (%) 47 | 3 92 46 Regions Visited 2 Branch Regions 1 Pre-discovered Areas . | . . . Known Exits Taken . | . . . Unknown Exits Taken 2 | 1 1 . Scrap Searched 9 | . . 9 Spaces Dug 30 | . 15 15 Terrain Destroyed 109 | . 40 69 Melee 9 | . . 9 Projectile . | . . . AOE 100 | . 40 60 Terrain Rammed . | . . . Walls Destroyed . | . . . Machines Disabled . | . . . Actions | -11 -10 -10 --------- Run | Yrd Mat Sub Total 1880 | 103 721 1056 Wait 67 | . 66 1 Move 1633 | 76 575 982 Hop . | . . . Pick Up 45 | 15 24 6 Fast Attach . | . . . Attach 11 | 7 2 2 Detach . | . . . Swap 15 | . 10 5 Drop 17 | . 11 6 Fire 83 | 5 33 45 Melee 9 | . . 9 Ram . | . . . Kick . | . . . Crush . | . . . Escape Stasis . | . . . Rewire . | . . . Trap . | . . . Miscellaneous . | . . . Route ------- -11/Scrapyard -10/Materials (discovered 6 exits: [*Mat x3] / *Min x2 / *Sub) -10/Subcaves (discovered 1 exit: Rec) History --------- Turn | Location | Event 5 | -11/Scrapyard | Discovered new exit (range 16) 96 | -11/Scrapyard | Entered Materials 332 | -10/Materials | Build established: Mutant 345 | -10/Materials | Discovered new exit (range 8) 398 | -10/Materials | Repaired Wheel 507 | -10/Materials | Discovered new exit (range 8) 522 | -10/Materials | Identified exit to Mines 581 | -10/Materials | Central database locked down 581 | -10/Materials | Discovered new exit (range 13) 699 | -10/Materials | Discovered new exit (range 5) 868 | -10/Materials | Discovered new exit (range 9) 879 | -10/Materials | Entered Subcaves 913 | -10/Subcaves | A swath of the cavern ceiling suddenly collapsed 1139 | -10/Subcaves | Identified exit to Recycling 1349 | -10/Subcaves | Visited 4L-MR0's lab 1374 | -10/Subcaves | Found Arachnoskeleton 1796 | -10/Subcaves | Shifting Twisted Machinery released Shrapnel Trap 1948 | -10/Subcaves | Core integrity fell below 50% 2080 | -10/Subcaves | Crushed by falling debris 2080 | -10/Subcaves | Smashed by cave-in Last Messages --------------- 01957_ Acquired 5 matter. 01970_ Searching scrap... 01970_ Found Sub. Machine Gun. 01970_ Found Sub. Monowheel. 01970_ Found 21 Matter. 01971_ Acquired 21 matter. 01971_ Searching scrap... 01971_ Found Sub. Monowheel. 01971_ Found Sub. Optics. 01971_ Found 30 Matter. 01972_ Acquired 30 matter. 02007_ U5-7LQ(u) tweaks Twisted Machinery. 02010_ Discarded Targeting Computer. 02027_ Acquired 4 matter. 02080_ The unstable cave ceiling collapses. 02080_ Crushed by falling debris. 02080_ Wheel destroyed. 02080_ System corrupted by crushing effect (+1). 02080_ Ion Engine destroyed. 02080_ System corrupted by crushing effect (+4). Map ----- +----------------------------------------------------+ | ?????????????????????????????????????????????????? | | ?????????????????????????????????????????????????? | | ?????????????????????????????????????????????????? | | ?????????????????????????????????????????????????? | | ?????????????????????????????????????????????????? | | ?????????????????????????????????????????????????? | | ?????????????????????????????????????????????????? | | ?????????????????????????????????????????????????? | | ?????????????????????????????????????????????????? | | ?????????????????????????????????????????????????? | | ?????????????????????????????????????????????????? | | ?????????????????????????????????????????????????? | | ?????????????????????????????????????????????????? | | ?????????????????????????????????????????????????? | | ?????????????????????????????????????????????????? | | ?????????????????????????????????????????????????? | | ?????????????????????????????????????????????????? | | ?????????????????????????????????????????????????? | | ?????????????????????????????????????????????????? | | ?????????????????????????????????????????????????? | | ?????????????????????????????????????????????????? | | ?????????????????????????????????????????????????? | | ?????????????????????????????????????????????????? | | ???????????### #############?????????????????????? | | ???????????#################?????????????????????? | | ??????????###! ; @##?????????????????????? | | ??????????###&##############?????????????????????? | | ??????????## #############?????????????????????? | | ??????????### ###???????????????????????????????? | | ??????????## ####??????????????????????????????? | | ??????????### ###??????????????????????????????? | | ??????????### ###?????????????????????????????? | | ???????????#### ###?????????????????????????????? | | ???????????#### ##?????????????????????????????? | | ????????????### ###????????????????????????????? | | ???????####### ###????????????????????????????? | | ???????####### ##????????????????????????????? | | ???????##&["## ##????????????????????????????? | | ???????#"=# #" ##????????????????????????????? | | ???????#&=# ! % ##????????????????????????????? | | ???????#!"# #" % ##????????????????????????????? | | ???????# ####% ##????????????????????????????? | | ???????####### ##????????????????????????????? | | ???????????### ##????????????????????????????? | | ????????????## ##????????????????????????????? | | ????????????## ##????????????????????????????? | | ???????????### ###????????????????????????????? | | ???????????### ###????????????????????????????? | | ???????????## ##?????????????????????????????? | | ???????????## ##????????????????????###??????? | +----------------------------------------------------+ Best States ------------- Heat Dissipation 25 Energy Generation 12 Energy Capacity 265 Matter Stores 300 Matter Capacity 300 Sight Range 16 Terrain Scan Range 16 Terrain Scan Density 10 Resistance: KI 20 Resistance: TH 20 Resistance: EX 20 Resistance: EM 20 Resistance: I 20 Resistance: S 20 Resistance: P 20 Evasion (%) 50 Targeting Accuracy 5 Offensive Hacking 10 Item Schematics ----------------- None Robot Schematics ------------------ None Fabricated ------------ Nothing Alien Tech Used ----------------- None Achievements -------------- None Challenges ------------ None Game ------ Seed MultitargetingLaserMultitool Manual? 0 Play Time 00:20:07 Cumulative 376.1 hours Start 2024.06.24 @ 11:38:05 End 2024.06.24 @ 11:55:57 Sessions 1 Manual Loads 0 Difficulty Adventurer Special Mode None Game No. 65 Rogue 0 Adventurer 65 Explorer 0 Win Type - Total 3 Types 2/0/0/1/0/0/0/0/0 Lore% 54 Gallery% 76 Achievement% 64 Wizard Run 0 Options --------- Layout 2 ASCII 0 Keyboard 0 Movement Mouse Keybinds 0 Fullscreen 1 Font 24/Smallcaps Map View 50x49 Zoom Use 0% Tactical HUD 1 Map Filters NONE Filters NONE Steam 1 RUN: 3453a770-2f0d-483e-b126-06e3380695d3